bitfinex/quotes_BTCUSD_20260125
["timestamp","ask_amount","ask_price","bid_price","bid_amount"]
[1769328053007,0.11264134,88642.0,88630.0,0.00112684]
[1769328054211,0.11264134,88642.0,88629.0,0.31322597]
[1769328054415,0.11264134,88642.0,88615.0,0.18460477]
[1769328054416,0.11264134,88642.0,88631.0,0.51754923]
[1769328054657,0.11264134,88642.0,88633.0,0.31322597]
[1769328054866,0.11264134,88642.0,88634.0,0.00112679]
[1769328055858,0.03385994,88643.0,88635.0,0.30006597]
[1769328056057,0.03385994,88643.0,88634.0,0.51754923]
[1769328056058,0.03385994,88643.0,88636.0,0.26849279]
[1769328056484,0.48858996,88653.0,88636.0,0.26849279]
[1769328056684,0.1126383,88652.0,88636.0,0.26849279]
[1769328056885,0.60122826,88651.0,88636.0,0.26849279]
[1769328057195,0.60122826,88650.0,88636.0,0.26849279]
[1769328057347,0.1126383,88649.0,88636.0,0.26849279]
[1769328057551,0.01128057,88648.0,88636.0,0.26849279]
[1769328057757,0.15777881,88648.0,88636.0,0.26849279]
[1769328057957,0.1126383,88647.0,88636.0,0.26849279]
[1769328058410,0.14649824,88646.0,88636.0,0.26849279]
[1769328058592,0.03385994,88646.0,88636.0,0.26849279]
[1769328058798,0.01128044,88649.0,88636.0,0.26849279]
[1769328058996,0.11263649,88649.0,88636.0,0.26849279]
[1769328059194,0.03385994,88648.0,88636.0,0.26849279]
[1769328059416,0.11263649,88647.0,88636.0,0.26849279]
[1769328060019,0.14649643,88646.0,88636.0,0.26849279]
[1769328060222,0.03385994,88646.0,88636.0,0.26849279]
[1769328060405,0.49987027,88650.0,88636.0,0.26849279]
[1769328060608,0.14649697,88649.0,88636.0,0.26849279]
[1769328060918,0.11263703,88648.0,88636.0,0.26849279]
[1769328061116,0.11263703,88647.0,88636.0,0.26849279]
[1769328061334,0.11263703,88646.0,88636.0,0.26849279]
[1769328061534,0.49987027,88650.0,88636.0,0.26849279]
[1769328061893,0.03385994,88645.0,88636.0,0.26849279]
[1769328062509,0.03385994,88645.0,88629.0,0.51754923]
[1769328062689,0.48858996,88650.0,88617.0,0.11286708]
[1769328062690,0.0002911,88656.0,88645.0,1e-08]
[1769328063271,0.49949033,88655.0,88645.0,1e-08]
[1769328063470,0.12392356,88654.0,88645.0,1e-08]
[1769328063698,0.11264376,88654.0,88645.0,1e-08]
[1769328064112,0.0002911,88656.0,88648.0,0.3071829]
[1769328064453,0.0002911,88656.0,88651.0,0.3071829]
[1769328064583,0.0002911,88656.0,88653.0,0.3071829]
[1769328064985,0.0002911,88656.0,88645.0,1e-08]
[1769328064986,0.0002209,88669.0,88656.0,0.5097861]
[1769328065209,0.0002209,88669.0,88659.0,0.3071829]
[1769328065410,0.0002209,88669.0,88661.0,0.3071829]
[1769328067042,0.0002209,88669.0,88657.0,0.5097861]
[1769328067191,0.0002209,88669.0,88656.0,0.00047558]
[1769328067390,0.0002209,88669.0,88661.0,0.5097861]
[1769328067391,5.523e-05,88669.0,88661.0,0.5097861]
[1769328067585,0.33450098,88689.0,88660.0,0.5097861]
[1769328067790,0.33450098,88689.0,88663.0,0.3071829]
[1769328067791,0.01127713,88686.0,88663.0,0.3071829]
[1769328068041,0.39035881,88688.0,88665.0,0.3071829]
[1769328068217,0.01127586,88685.0,88668.0,0.5097861]
[1769328068418,0.01127573,88686.0,88669.0,0.3071829]
[1769328068808,0.0112756,88687.0,88669.0,0.3071829]
[1769328069012,0.0112756,88687.0,88670.0,0.3071829]
[1769328069485,0.40163429,88688.0,88670.0,0.3071829]
[1769328069645,0.39035881,88688.0,88670.0,0.3071829]
[1769328070247,0.39035881,88688.0,88671.0,0.3071829]
[1769328074788,0.0001292,88689.0,88673.0,0.31264279]
[1769328074985,0.0001292,88689.0,88674.0,0.31264279]
[1769328075670,0.0001292,88689.0,88676.0,0.50906224]
[1769328075895,0.0001292,88689.0,88679.0,0.31264279]
[1769328076115,0.0001292,88689.0,88681.0,0.31264279]
[1769328079358,0.0001292,88689.0,88683.0,0.31264279]
[1769328080585,0.0001292,88689.0,88683.0,0.31276062]
[1769328084230,0.01127408,88699.0,88683.0,0.31276062]
[1769328084605,0.01127421,88698.0,88683.0,0.31276062]
[1769328086914,0.00588684,88700.0,88685.0,0.50906224]
[1769328087111,0.00588684,88700.0,88685.0,0.82170503]
[1769328087490,0.00588684,88700.0,88686.0,0.31264279]
[1769328087694,0.31366287,88706.0,88686.0,0.31264279]
[1769328087892,0.01127383,88701.0,88686.0,0.31264279]
[1769328088900,0.22546269,88707.0,88687.0,0.00299301]
[1769328089103,0.39150057,88705.0,88687.0,0.00299301]
[1769328089305,0.0778377,88704.0,88687.0,0.00299301]
[1769328089510,0.31366287,88704.0,88687.0,0.00299301]
[1769328089869,0.0778377,88703.0,88687.0,0.00299301]
[1769328092345,0.01127383,88701.0,88687.0,0.00299301]
[1769328092493,0.01127408,88699.0,88687.0,0.00299301]
[1769328092853,0.01127395,88700.0,88687.0,0.00299301]
[1769328093239,0.01127383,88701.0,88687.0,0.00299301]
[1769328094734,0.01127383,88701.0,88687.0,0.00468436]
[1769328096241,0.06764305,88701.0,88687.0,0.00468436]
[1769328096455,0.01127383,88701.0,88687.0,0.81533815]
[1769328096657,0.01127383,88701.0,88687.0,0.81065379]
[1769328096860,0.01127383,88701.0,88688.0,0.00471863]
[1769328100126,0.12385724,88702.0,88688.0,0.00471863]
[1769328101382,0.01127383,88701.0,88688.0,0.00471863]
[1769328103334,0.01127421,88698.0,88688.0,0.00471863]
[1769328103639,0.01127395,88700.0,88688.0,0.00471863]
[1769328104006,0.01127421,88698.0,88688.0,0.00471863]
[1769328104209,0.01127471,88694.0,88687.0,0.00476948]
[1769328104472,0.01127446,88696.0,88687.0,0.00476948]
[1769328105232,0.123858,88696.0,88687.0,0.00476948]
[1769328105436,0.01127433,88697.0,88687.0,0.00476948]
[1769328105603,0.01127421,88698.0,88687.0,0.00476948]
[1769328106206,0.12400824,88699.0,88687.0,0.00476948]
[1769328106587,0.11273416,88699.0,88687.0,0.00476948]
[1769328106756,0.11273416,88698.0,88687.0,0.00476948]
[1769328106963,0.11273416,88697.0,88687.0,0.00476948]
[1769328107177,0.11273416,88696.0,88687.0,0.00476948]
[1769328107379,0.01127408,88699.0,88687.0,0.00476948]
[1769328107736,0.12402527,88700.0,88687.0,0.00476948]
[1769328108313,0.01127421,88698.0,88687.0,0.00476948]
[1769328108525,0.11275132,88699.0,88687.0,0.00476948]
[1769328108734,0.11275132,88698.0,88687.0,0.00476948]
[1769328108898,0.11275132,88697.0,88687.0,0.00476948]
[1769328109202,0.11275132,88696.0,88687.0,0.00476948]
[1769328109377,0.11275132,88695.0,88687.0,0.00476948]
[1769328109594,0.11275132,88694.0,88687.0,0.00476948]
[1769328109778,0.01127395,88700.0,88687.0,0.00476948]
[1769328109979,0.13533827,88711.0,88687.0,0.00476948]
[1769328109980,0.19059583,88702.0,88687.0,0.00476948]
[1769328110181,0.11275813,88701.0,88687.0,0.00476948]
[1769328110888,0.05637216,88697.0,88687.0,0.00476948]
[1769328111085,0.11275813,88696.0,88687.0,0.00476948]
[1769328111288,0.12403259,88696.0,88687.0,0.00476948]
[1769328111462,0.11275813,88696.0,88687.0,0.00476948]
[1769328111673,0.11275813,88695.0,88687.0,0.00476948]
[1769328111908,0.11275813,88694.0,88687.0,0.00476948]
[1769328112134,0.0563696,88701.0,88683.0,0.00481092]
[1769328112271,0.11276256,88700.0,88683.0,0.00481092]
[1769328113891,0.11276256,88699.0,88683.0,0.00481092]
[1769328114134,0.11276256,88698.0,88683.0,0.00481092]
[1769328114456,0.11276256,88697.0,88683.0,0.00481092]
[1769328114798,0.11276256,88696.0,88684.0,0.01711692]
[1769328115017,0.11276256,88696.0,88683.0,0.00011783]
[1769328115018,0.11276256,88695.0,88683.0,0.01723475]
[1769328115157,0.11276256,88694.0,88683.0,0.01723475]
[1769328115361,0.11276256,88693.0,88683.0,0.01723475]
[1769328115564,0.11276256,88692.0,88683.0,0.01723475]
[1769328115771,0.39270334,88701.0,88683.0,0.01723475]
[1769328115978,0.11276954,88700.0,88683.0,0.01723475]
[1769328117587,0.11276954,88700.0,88683.0,0.00011783]
[1769328117755,0.11276954,88700.0,88684.0,0.81065379]
[1769328117957,0.11276954,88700.0,88685.0,0.01740101]
[1769328119426,0.11276954,88700.0,88686.0,0.0174008]
[1769328119930,0.39270334,88699.0,88686.0,0.0174008]
[1769328120094,0.11276954,88698.0,88687.0,0.01740039]
[1769328120291,0.11276954,88698.0,88688.0,0.01740039]
[1769328120497,0.11276954,88698.0,88689.0,0.01740019]
[1769328120703,0.11276954,88698.0,88683.0,0.01751802]
[1769328120903,0.11276954,88698.0,88683.0,0.00011783]
[1769328121636,0.11276954,88698.0,88684.0,0.4923967]
[1769328121796,0.39270334,88704.0,88686.0,0.4923967]
[1769328121999,0.11277536,88703.0,88687.0,0.01740096]
[1769328122357,0.11277536,88703.0,88687.0,0.01732353]
[1769328122559,0.11277536,88703.0,88683.0,0.01736394]
[1769328122758,0.11277536,88702.0,88684.0,0.01619653]
[1769328122973,0.32613832,88710.0,88688.0,0.3137809]
[1769328123176,0.11277408,88709.0,88690.0,0.79262513]
[1769328123342,0.11277408,88709.0,88691.0,0.01619586]
[1769328123935,0.12404689,88709.0,88691.0,0.01619586]
[1769328124139,0.11277408,88709.0,88691.0,0.01619586]
[1769328124901,0.01715978,88708.0,88691.0,0.01619586]
[1769328125186,0.01127306,88707.0,88690.0,0.79262513]
[1769328125393,0.11277408,88707.0,88691.0,0.01593769]
[1769328125738,0.12404714,88707.0,88691.0,0.01593769]
[1769328125977,0.01127319,88706.0,88690.0,0.79262513]
[1769328126290,0.12404714,88707.0,88690.0,0.79262513]
[1769328126490,0.11277408,88707.0,88690.0,0.79262513]
[1769328126997,0.11277408,88707.0,88691.0,0.01595616]
[1769328129580,0.11277408,88707.0,88691.0,0.02246083]
[1769328130012,0.11277408,88707.0,88691.0,0.81508596]
[1769328130207,0.11277408,88707.0,88691.0,0.79262513]
[1769328130779,0.11277408,88707.0,88692.0,0.02254994]
[1769328134033,0.11277408,88706.0,88692.0,0.02254994]
[1769328134216,0.11277408,88705.0,88692.0,0.02254994]
[1769328134416,0.00619864,88708.0,88692.0,0.02254994]
[1769328134822,0.40286014,88708.0,88692.0,0.02254994]
[1769328135033,0.11269077,88707.0,88692.0,0.02254994]
[1769328135577,0.09017572,88714.0,88693.0,0.32254144]
[1769328135776,0.0001856,88731.0,88690.0,0.29174851]
[1769328135777,0.0001856,88731.0,88699.0,0.47887368]
[1769328135778,0.0001856,88719.0,88699.0,0.47887368]
[1769328135974,0.0001856,88719.0,88702.0,0.32254144]
[1769328136135,0.0001856,88719.0,88702.0,0.80141512]
[1769328136459,0.0001856,88719.0,88692.0,0.47887368]
[1769328136656,0.0001856,88719.0,88695.0,0.32254144]
[1769328136862,0.0001856,88719.0,88698.0,0.47887368]
[1769328137056,0.0001856,88719.0,88701.0,0.32254144]
[1769328137258,0.0001856,88719.0,88703.0,0.32254144]
[1769328139072,0.0001856,88719.0,88706.0,0.47887368]
[1769328139272,0.0001856,88719.0,88708.0,0.80141512]
[1769328139611,0.0001856,88719.0,88708.0,0.32254144]
[1769328139811,0.0001856,88719.0,88703.0,0.80141512]
[1769328140014,0.0001856,88719.0,88704.0,0.0173168]
[1769328141241,0.0001856,88719.0,88704.0,0.33985824]
[1769328141414,0.0001856,88719.0,88704.0,0.32254144]
[1769328141632,0.0001856,88719.0,88705.0,0.0173193]
[1769328143518,0.07383621,88742.0,88709.0,0.29174851]
[1769328143519,0.3188238,88733.0,88709.0,0.29174851]
[1769328144160,0.01126989,88732.0,88709.0,0.29174851]
[1769328144764,0.33009356,88733.0,88713.0,0.32254144]
[1769328144996,0.01126989,88732.0,88713.0,0.32254144]
[1769328145996,0.00032836,88731.0,88713.0,0.32254144]
[1769328146252,0.0847413,88731.0,88713.0,0.32254144]
[1769328146461,0.08441294,88730.0,88713.0,0.32254144]
[1769328146640,0.40323674,88730.0,88713.0,0.32254144]
[1769328147440,0.40323674,88730.0,88714.0,0.01617131]
[1769328148518,0.3188238,88730.0,88712.0,0.80141512]
[1769328148719,0.3188238,88730.0,88713.0,0.81871383]
[1769328148920,0.3188238,88730.0,88713.0,0.80141512]
[1769328149730,0.33009394,88730.0,88713.0,0.80141512]
[1769328150089,0.01127027,88729.0,88713.0,0.80141512]
[1769328150247,0.01127039,88728.0,88713.0,0.80141512]
[1769328150436,0.33009394,88730.0,88713.0,0.80141512]
[1769328154466,0.33009394,88730.0,88714.0,0.01715036]
[1769328157815,0.3188238,88730.0,88714.0,0.01715036]
[1769328158715,0.00032836,88731.0,88715.0,0.31448054]
[1769328158917,0.00032836,88731.0,88714.0,0.01715036]
[1769328158918,0.00032836,88731.0,88718.0,0.49166514]
[1769328159120,0.00032836,88731.0,88719.0,0.33702362]
[1769328159293,0.00032836,88731.0,88720.0,0.02254282]
[1769328163470,0.00032836,88731.0,88720.0,0.33702336]
[1769328163694,0.00032836,88731.0,88720.0,0.80614568]
[1769328164913,0.00032836,88731.0,88721.0,0.01693871]
[1769328165712,0.00032836,88731.0,88722.0,0.1732]
[1769328165898,0.00032836,88731.0,88723.0,0.01807632]
[1769328166707,0.20765983,88740.0,88723.0,0.01807632]
[1769328166910,0.01316214,88739.0,88723.0,0.01807632]
[1769328168953,0.01126862,88742.0,88723.0,0.01807632]
[1769328169158,0.01126887,88740.0,88725.0,0.31448054]
[1769328169363,0.01126887,88740.0,88726.0,0.01809681]
[1769328169718,0.011269,88739.0,88726.0,0.01809681]
[1769328170038,0.02443101,88740.0,88726.0,0.01809681]
[1769328170222,0.011269,88739.0,88726.0,0.01809681]
[1769328170601,0.01316214,88740.0,88726.0,0.01809681]
[1769328171256,0.3058024,88745.0,88726.0,0.01809681]
[1769328171464,0.00013163,88744.0,88726.0,0.01809681]
[1769328172248,0.31757742,88744.0,88726.0,0.01809681]
[1769328172515,0.00013163,88743.0,88726.0,0.01809681]
[1769328173343,0.00013163,88742.0,88726.0,0.01809681]
[1769328173924,0.00013163,88742.0,88726.0,0.33257735]
[1769328174127,0.00013163,88742.0,88726.0,0.31448054]
[1769328174329,0.00013163,88742.0,88727.0,0.31448054]
[1769328174535,0.00013163,88742.0,88728.0,0.0157176]
[1769328175007,0.31744579,88743.0,88727.0,0.31448054]
[1769328175211,0.31744579,88743.0,88728.0,0.01573353]
[1769328175816,0.0004,88746.0,88728.0,0.01573353]
[1769328176239,0.00053163,88746.0,88728.0,0.01573353]
[1769328177006,0.00053163,88746.0,88728.0,0.02222494]
[1769328180581,0.00053163,88746.0,88728.0,0.33670548]
[1769328180780,0.00053163,88746.0,88728.0,0.31448054]
[1769328180991,0.00053163,88746.0,88729.0,0.00339406]
[1769328181639,0.00053163,88746.0,88729.0,0.31448054]
[1769328181848,0.0004,88746.0,88731.0,0.31448054]
[1769328182053,0.0004,88746.0,88733.0,0.49166514]
[1769328182253,0.0004,88746.0,88734.0,0.31448054]
[1769328182464,0.0004,88746.0,88734.0,0.49166514]
[1769328182695,0.0004,88746.0,88735.0,0.31448054]
[1769328182904,0.0004,88746.0,88735.0,0.31444054]
[1769328185631,0.0004,88746.0,88731.0,0.00014276]
[1769328186036,0.0004,88746.0,88731.0,0.00358125]
[1769328186362,0.0004,88746.0,88732.0,0.00456544]
[1769328190200,0.0004,88746.0,88732.0,0.33193439]
[1769328190401,0.0004,88746.0,88732.0,0.32736895]
[1769328190996,0.0004,88746.0,88732.0,0.47624154]
[1769328191204,0.0004,88746.0,88733.0,0.32736895]
[1769328191413,0.0004,88746.0,88734.0,0.0044613]
[1769328195634,0.0004,88746.0,88734.0,0.00727246]
[1769328200950,0.01126862,88742.0,88734.0,0.00727246]
[1769328201084,0.01126849,88743.0,88734.0,0.00727246]
[1769328201290,0.01126862,88742.0,88734.0,0.00727246]
[1769328201652,0.01126836,88744.0,88734.0,0.00727246]
[1769328201857,0.01126849,88743.0,88734.0,0.00727246]
[1769328202086,0.01126824,88745.0,88734.0,0.00727246]
[1769328202685,0.01126824,88745.0,88734.0,0.01265142]
[1769328203288,0.01126862,88742.0,88734.0,0.01265142]
[1769328203848,0.0004,88746.0,88734.0,0.01265142]
[1769328204385,0.00028731,88746.0,88734.0,0.01265142]
[1769328204979,0.01126824,88745.0,88734.0,0.01265142]
[1769328205178,0.01155542,88746.0,88734.0,0.01265142]
[1769328205959,0.01126824,88745.0,88734.0,0.01265142]
[1769328206160,0.01126849,88743.0,88734.0,0.01265142]
[1769328206369,0.00028731,88746.0,88731.0,0.00014276]
[1769328206498,0.000241,88753.0,88731.0,0.02148802]
[1769328206932,0.000241,88753.0,88733.0,0.34048234]
[1769328207131,0.000241,88753.0,88736.0,0.43943681]
[1769328207332,0.000241,88753.0,88739.0,0.34048234]
[1769328207539,0.000241,88753.0,88740.0,0.02134307]
[1769328215847,0.000241,88753.0,88740.0,0.33783215]
[1769328215989,0.000241,88753.0,88740.0,0.31648908]
[1769328216778,0.000241,88753.0,88740.0,0.29145429]
[1769328216986,0.000241,88753.0,88742.0,0.31648908]
[1769328217165,0.000241,88753.0,88743.0,0.00334821]
[1769328219268,0.02757939,88760.0,88743.0,0.00334821]
[1769328219269,0.0002186,88766.0,88747.0,0.44815311]
[1769328219466,0.0002186,88766.0,88753.0,0.44815311]
[1769328219761,0.0002186,88766.0,88756.0,0.44815311]
[1769328219910,0.0002186,88766.0,88757.0,0.31644908]
[1769328220314,0.0002186,88766.0,88756.0,0.44815311]
[1769328220531,0.0002186,88766.0,88756.0,0.44782819]
[1769328222094,7.741e-05,88756.0,88742.0,0.31648908]
[1769328222243,7.741e-05,88756.0,88743.0,0.46392249]
[1769328222443,0.32141662,88756.0,88732.0,0.76464219]
[1769328222658,0.01126722,88753.0,88737.0,0.17316]
[1769328222903,0.01126709,88754.0,88737.0,0.17316]
[1769328223094,0.01126735,88752.0,88737.0,0.17316]
[1769328223297,0.01126709,88754.0,88738.0,0.01522528]
[1769328223651,0.01126697,88755.0,88738.0,0.01522528]
[1769328223856,0.01126697,88755.0,88738.0,0.46337839]
[1769328224057,0.01126697,88755.0,88738.0,0.44815311]
[1769328224482,0.3535622,88756.0,88738.0,0.44815311]
[1769328225272,0.3535622,88756.0,88738.0,0.31648908]
[1769328225629,0.3535622,88756.0,88739.0,0.44815311]
[1769328225787,0.32141662,88756.0,88739.0,0.44815311]
[1769328227303,0.33268346,88756.0,88739.0,0.44815311]
[1769328228501,0.32141662,88756.0,88739.0,0.44815311]
[1769328230261,0.33268346,88756.0,88739.0,0.44815311]
[1769328230479,0.32141662,88756.0,88739.0,0.44815311]
[1769328230847,0.33268346,88756.0,88739.0,0.44815311]
[1769328231792,0.32141662,88756.0,88739.0,0.44815311]
[1769328231984,7.741e-05,88756.0,88742.0,0.31648908]
[1769328232200,7.741e-05,88756.0,88745.0,0.44815311]
[1769328232387,7.741e-05,88756.0,88746.0,0.46471892]
[1769328232589,7.741e-05,88756.0,88746.0,0.44815311]
[1769328233816,7.741e-05,88756.0,88747.0,0.31648908]
[1769328233951,7.741e-05,88756.0,88737.0,0.17316]
[1769328233952,7.741e-05,88756.0,88750.0,0.44815311]
[1769328234152,7.741e-05,88756.0,88754.0,0.39113665]
[1769328234356,7.741e-05,88756.0,88754.0,0.30305281]
[1769328234908,7.741e-05,88756.0,88749.0,0.44815311]
[1769328238355,7.741e-05,88756.0,88750.0,0.00177192]
[1769328239462,7.741e-05,88756.0,88752.0,0.31648908]
[1769328239610,7.741e-05,88756.0,88754.0,0.44815311]
[1769328241462,7.741e-05,88756.0,88755.0,0.44815311]
[1769328241646,7.741e-05,88756.0,88755.0,0.76464219]
[1769328257316,0.17587152,88773.0,88755.0,0.76464219]
[1769328257527,0.19102315,88772.0,88755.0,0.76464219]
[1769328257862,0.19102315,88772.0,88756.0,0.00056116]
[1769328258025,0.17587152,88771.0,88756.0,0.00056116]
[1769328258353,0.01515163,88770.0,88756.0,0.00056116]
[1769328259033,0.01515163,88770.0,88755.0,0.76464219]
[1769328259161,0.01515163,88770.0,88756.0,0.00028211]
[1769328260434,0.01515163,88770.0,88756.0,0.00200379]
[1769328261496,0.17587152,88771.0,88756.0,0.00200379]
[1769328262053,0.29951062,88769.0,88740.0,0.29126774]
[1769328262260,0.17917005,88765.0,88743.0,0.00032154]
[1769328262474,0.29951062,88761.0,88743.0,0.17344154]
[1769328262676,0.05300277,88764.0,88743.0,0.17456838]
[1769328262881,0.0001539,88774.0,88743.0,0.17456838]
[1769328262882,0.29951062,88757.0,88743.0,0.17456838]
[1769328263059,0.29798577,88766.0,88743.0,0.17456838]
[1769328263244,0.31466225,88765.0,88745.0,0.28064864]
[1769328263441,0.29951062,88765.0,88746.0,0.00313854]
[1769328264070,0.29951062,88765.0,88746.0,0.28378718]
[1769328264227,0.29951062,88765.0,88746.0,0.28064864]
[1769328265437,0.29951062,88765.0,88747.0,0.46986484]
[1769328265643,0.29951062,88773.0,88748.0,0.46986484]
[1769328265874,0.29951062,88771.0,88748.0,0.46986484]
[1769328266385,0.29951062,88769.0,88749.0,0.00182258]
[1769328266594,0.31077581,88769.0,88744.0,0.00182785]
[1769328266802,0.29951062,88767.0,88744.0,0.00182785]
[1769328267644,0.29951062,88767.0,88744.0,0.28247649]
[1769328267941,0.29951062,88765.0,88744.0,0.28064864]
[1769328268146,0.29951062,88763.0,88744.0,0.28064864]
[1769328268919,0.29951062,88763.0,88745.0,0.00053317]
[1769328269763,0.29951062,88763.0,88745.0,0.00222623]
[1769328270388,0.29542475,88763.0,88745.0,0.00222623]
[1769328270926,0.29542475,88763.0,88743.0,0.00222623]
[1769328272071,0.29951062,88761.0,88743.0,0.00222623]
[1769328272416,0.29951062,88761.0,88742.0,0.00350701]
[1769328272874,0.01126633,88760.0,88742.0,0.00350701]
[1769328273102,0.01126646,88759.0,88742.0,0.00350701]
[1769328273428,0.0112662,88761.0,88742.0,0.00350701]
[1769328273429,0.27448385,88758.0,88742.0,0.00350701]
[1769328276125,0.27448385,88758.0,88742.0,0.28706552]
[1769328276331,0.27448385,88758.0,88742.0,0.28371241]
[1769328276528,0.27448385,88758.0,88742.0,0.0001539]
[1769328276731,0.27448385,88758.0,88742.0,0.00057632]
[1769328276947,0.11085662,88758.0,88742.0,0.00057632]
[1769328277544,0.11085662,88758.0,88742.0,0.00226668]
[1769328277733,0.11085662,88758.0,88742.0,0.0001539]
[1769328278625,0.05633101,88762.0,88742.0,0.00226648]
[1769328278974,0.20308326,88757.0,88743.0,0.00211254]
[1769328279117,0.20308326,88757.0,88742.0,0.0001539]
[1769328279118,0.20308326,88757.0,88742.0,0.00227171]
[1769328279319,0.20308326,88757.0,88742.0,0.0001539]
[1769328280590,0.1940669,88745.0,88742.0,0.0001539]
[1769328280747,0.20533514,88745.0,88742.0,0.0001539]
[1769328282018,0.20267139,88745.0,88742.0,0.0001539]
[1769328284782,0.20267139,88745.0,88733.0,0.0001539]
[1769328284783,0.01126912,88738.0,88733.0,0.0001539]
[1769328284983,0.19334166,88738.0,88733.0,0.0001539]
[1769328285145,0.20461078,88738.0,88733.0,0.0001539]
[1769328285792,0.01126925,88737.0,88733.0,0.0001539]
[1769328286006,0.19394151,88736.0,88733.0,0.0001539]
[1769328286486,0.19455631,88735.0,88733.0,0.0001539]
[1769328286669,0.48519666,88734.0,88733.0,0.0001539]
[1769328286847,0.67975297,88734.0,88733.0,0.0001539]
[1769328289534,0.19455631,88734.0,88731.0,0.00014276]
[1769328289750,0.48520166,88733.0,88731.0,0.00014276]
[1769328295398,0.6770644,88739.0,88733.0,0.0095]
[1769328295558,0.15852032,88740.0,88733.0,0.0095]
[1769328295746,0.03382639,88746.0,88733.0,0.0095]
[1769328295975,0.48520166,88748.0,88733.0,0.0005]
[1769328295976,0.17316,88741.0,88733.0,0.0005]
[1769328296666,0.51902652,88748.0,88734.0,0.23283985]
[1769328296667,0.01126785,88748.0,88734.0,0.23283985]
[1769328296823,0.0001305,88750.0,88737.0,0.28355851]
[1769328297019,0.0001305,88750.0,88738.0,0.28355851]
[1769328297426,0.0113981,88750.0,88738.0,0.28355851]
[1769328298142,0.48739926,88755.0,88738.0,0.28355851]
[1769328298322,0.51575885,88755.0,88738.0,0.28355851]
[1769328299515,0.11245546,88754.0,88738.0,0.28355851]
[1769328302955,0.11245546,88754.0,88738.0,0.49565386]
[1769328303174,0.11245546,88754.0,88739.0,0.28766026]
[1769328303381,0.11245546,88754.0,88740.0,0.28766026]
[1769328305580,0.11245546,88754.0,88739.0,0.49565386]
[1769328305820,0.47397634,88753.0,88731.0,0.00014276]
[1769328306020,0.47397634,88751.0,88731.0,0.00014276]
[1769328306186,0.47397634,88751.0,88731.0,0.28780302]
[1769328306386,0.58656511,88750.0,88731.0,0.28780302]
[1769328306609,0.47397634,88750.0,88731.0,0.28780302]
[1769328307301,0.47397634,88750.0,88731.0,0.78345688]
[1769328307483,0.11262416,88749.0,88733.0,0.28766026]
[1769328310266,0.11262416,88749.0,88734.0,0.01665355]
[1769328310479,0.11262416,88749.0,88735.0,0.28766026]
[1769328310679,0.11262416,88749.0,88736.0,0.01665581]
[1769328310876,0.11262416,88749.0,88736.0,0.28766026]
[1769328311082,0.11262416,88749.0,88737.0,0.01665562]
[1769328312357,0.11262416,88749.0,88737.0,0.30431588]
[1769328312649,0.11262416,88749.0,88737.0,0.28766026]
[1769328313642,0.11262416,88749.0,88738.0,0.01552852]
[1769328313971,0.11262416,88748.0,88739.0,0.2935252]
[1769328314203,0.03382131,88755.0,88742.0,0.49646361]
[1769328314330,0.09024026,88758.0,88742.0,0.49646361]
[1769328314331,0.000147,88758.0,88743.0,0.2935252]
[1769328314528,0.108366,88757.0,88743.0,0.2935252]
[1769328314934,0.108366,88757.0,88743.0,0.29344779]
[1769328315569,0.108366,88757.0,88743.0,0.29337037]
[1769328315888,0.000147,88758.0,88735.0,0.2935252]
[1769328315889,0.0095,88743.0,88735.0,0.2935252]
[1769328316050,0.01126824,88745.0,88735.0,0.2935252]
[1769328316875,0.01126836,88744.0,88735.0,0.2935252]
[1769328317258,0.01126811,88746.0,88735.0,0.2935252]
[1769328317463,0.01126798,88747.0,88735.0,0.2935252]
[1769328319130,0.01126785,88748.0,88735.0,0.2935252]
[1769328319315,0.20697979,88759.0,88736.0,0.2935252]
[1769328319511,0.1058,88757.0,88739.0,0.49646361]
[1769328319714,0.1058,88757.0,88742.0,0.2935252]
[1769328319913,0.1058,88757.0,88744.0,0.49646361]
[1769328320134,0.04512,88763.0,88748.0,0.49646361]
[1769328320335,0.0112662,88761.0,88752.0,0.2935252]
[1769328320484,0.0112662,88761.0,88753.0,0.49646361]
[1769328321317,0.01126608,88762.0,88753.0,0.49646361]
[1769328321716,0.05638595,88763.0,88753.0,0.49646361]
[1769328321923,0.04512,88763.0,88753.0,0.49646361]
[1769328322317,0.04512,88763.0,88756.0,0.2935252]
[1769328323409,0.04512,88763.0,88741.0,0.49646361]
[1769328323633,0.04512,88763.0,88745.0,0.2935252]
[1769328323866,0.04512,88763.0,88748.0,0.49646361]
[1769328324112,0.04512,88763.0,88749.0,0.78998881]
[1769328324337,0.04512,88763.0,88750.0,0.49646361]
[1769328324508,0.04512,88763.0,88750.0,0.78998881]
[1769328326109,0.11267024,88762.0,88750.0,0.78998881]
[1769328327387,0.11267024,88762.0,88730.0,0.01127014]
[1769328327388,0.28807983,88748.0,88726.0,0.48193657]
[1769328327584,0.46587693,88745.0,88726.0,0.48193657]
[1769328327786,0.47714555,88742.0,88726.0,0.48193657]
[1769328327988,0.76522538,88742.0,88726.0,0.48193657]
[1769328328828,0.75395676,88742.0,88726.0,0.48193657]
[1769328329030,0.75395676,88742.0,88726.0,0.48202457]
[1769328329233,0.28807983,88742.0,88726.0,0.48202457]
[1769328331189,0.01126912,88738.0,88726.0,0.48202457]
[1769328332727,0.011269,88739.0,88726.0,0.48202457]
[1769328333458,0.05634424,88741.0,88726.0,0.48202457]
[1769328333825,0.01126887,88740.0,88726.0,0.48202457]
[1769328334780,0.01126874,88741.0,88726.0,0.48202457]
[1769328336042,0.28807983,88742.0,88726.0,0.48202457]
[1769328337659,0.5136334,88748.0,88727.0,0.00486969]
[1769328337867,0.11265395,88747.0,88729.0,0.50316826]
[1769328338047,0.11265395,88747.0,88730.0,0.50803778]
[1769328338247,0.11265395,88747.0,88730.0,0.50316826]
[1769328338968,0.11265395,88747.0,88730.0,0.50325626]
[1769328339723,0.11265395,88747.0,88731.0,0.00486947]
[1769328340407,0.11265395,88747.0,88732.0,0.50316826]
[1769328340705,0.11265395,88747.0,88733.0,0.00600206]
[1769328341711,0.11265395,88747.0,88734.0,0.01254733]
[1769328341937,0.11265395,88747.0,88733.0,0.51571559]
[1769328342128,0.01126798,88747.0,88733.0,0.50316826]
[1769328342336,0.01126798,88747.0,88734.0,0.00482223]
[1769328342580,0.01126798,88747.0,88734.0,0.01722147]
[1769328342951,0.01126811,88746.0,88734.0,0.01722147]
[1769328343853,0.00778793,88746.0,88733.0,0.50316826]
[1769328345457,0.00778793,88746.0,88734.0,0.01717376]
[1769328347457,0.11272294,88748.0,88734.0,0.01717376]
[1769328361747,0.01126811,88746.0,88734.0,0.01717376]
[1769328361922,0.01126824,88745.0,88734.0,0.01717376]
[1769328365811,0.01126824,88745.0,88734.0,0.01159633]
[1769328366025,0.1268597,88733.0,88720.0,0.0001714]
[1769328366169,0.13522508,88733.0,88720.0,0.0001714]
[1769328366373,0.1268597,88733.0,88720.0,0.0001714]
[1769328366573,0.01127065,88726.0,88720.0,0.0001714]
[1769328367012,0.01127039,88728.0,88720.0,0.0001714]
[1769328367308,0.01127027,88729.0,88720.0,0.0001714]
[1769328367641,0.01127014,88730.0,88720.0,0.0001714]